[Event "Skagerrak Kragero 2022"]
[Site "Kragero"]
[Date "2022.06.04"]
[Round "6.3"]
[White "Sagafos, Magne"]
[Black "Hryzlova, Sofiia"]
[Result "1/2-1/2"]
[ECO "B30"]
[WhiteElo "2361"]
[BlackElo "2157"]
[Annotator "TA"]
[PlyCount "118"]
[EventDate "2022.06.02"]
[EventType "tourn"]
[EventCountry "NOR"]
[SourceTitle "playchess.com"]
[Source "ChessBase"]
[SourceQuality "1"]
[TimeControl "5400+30"]

{[%evp 9,118,11,18,-6,30,8,3,12,0,-4,22,37,22,29,24,18,108,0,-4,-27,0,-43,-45,-62,-62,-55,-58,-65,-41,-63,-4,-15,-11,-11,-11,-41,-9,-47,-39,-23,-42,-47,-58,-46,-42,-41,-33,-33,0,-96,-11,-48,-16,-60,0,-107,-48,-47,-12,-17,-33,-27,-4,-5,0,-8,85,87,154,121,108,102,131,186,239,123,402,420,402,135,131,120,118,43,59,68,83,0,0,0,117,117,89,0,12,0,0,0,0,0,0,0,0,0,0,0,0,0,0,0,0]} 1. e4 c5 2. Nc3 Nc6 3. Bb5 Nd4 4. Nf3 e6 5. Bd3 Nc6 6. O-O {B30: Sicilian: 2...Nc6 3 Bb5, lines without ...g6.} a6 {Prevents Bb5.} 7. b3 {7.e5 deserves study.} d6 8. Bb2 Nf6 9. Qe2 {[#]} Be7 $146 ({Predecessor:} 9... Qc7 10. Rae1 Be7 11. Nd1 O-O 12. e5 dxe5 13. Nxe5 Nd4 14. Qe3 Nd5 15. Qg3 Bd6 {½-½ (36) Sikorsky,H (2513)-Pappier,C (2525) ICCF email 2015}) 10. e5 dxe5 11. Nxe5 Nd4 12. Qe3 b6 (12... O-O $11) 13. Ne4 {White is more active.} (13. Ne2 $16) 13... Bb7 $11 14. Bxd4 (14. Ng5 {feels hotter.} Qd5 15. f3 Ng4 16. Nxg4 Bxg5 17. Qf2) 14... Qxd4 (14... cxd4 {seems wilder.} 15. Qf3 Qc7 16. Rfe1 Rd8) 15. Qxd4 cxd4 16. Nxf6+ gxf6 17. Nc4 b5 18. Na5 Bd5 19. a4 b4 (19... Rb8 $15 20. c4 dxc3 21. dxc3 O-O) 20. Rae1 Kd7 21. Nc4 Bc5 {Against Nb6+} 22. Nb2 h5 23. h4 Rhg8 24. g3 f5 25. Bc4 Bb7 {[%cal Od4d3]} 26. Nd3 Bd6 {[%cal Od6g3] A strong pair of Bishops.} (26... Rac8 {keeps more tension.} 27. Ne5+ Ke7 28. Nxf7 Kxf7 29. Rxe6 Rgd8) 27. Ne5+ Bxe5 28. Rxe5 {[%cal Oc2c3]} Kd6 29. Ree1 (29. Ra5 $1 $11) 29... Rg7 (29... f4 $17 30. Kh2 Rg4) 30. Kh2 {[%cal Oc2c3]} (30. c3 $5) 30... Rag8 {[%cal Of5f4]} 31. Rg1 f4 (31... Rb8 $15) 32. Be2 (32. c3 $1 $11 {was the only way to keep the balance.}) 32... f3 (32... Rc8 $17 33. Rc1 fxg3+ 34. fxg3 f5) 33. Bc4 $15 {[%cal Oc2c3]} Re8 34. c3 bxc3 35. dxc3 dxc3 36. Re3 c2 {next ...f5 is good for Black.} 37. Rc1 f5 (37... Rg4 $11 {keeps the balance.}) 38. Rxc2 $16 e5 (38... Rg6 $142) 39. Rd3+ Ke7 {And now ...Be4 would win.} 40. Rcd2 {Hoping for Rd7+.} Kf8 41. Rd6 $1 {Black must now prevent Rf6+.} Bc8 (41... f4 $142) 42. Bxa6 (42. Rh6 $18) 42... Be6 $2 {[%mdl 8192] Prevents R2d5.} (42... Bxa6 $16 43. Rxa6 f4) 43. Bb5 $18 Ree7 44. Bc4 $2 (44. a5 $18 {is more deadly.}) 44... Bxc4 $16 45. bxc4 {[%mdl 4096] Endgame KRR-KRR} Rg4 {[#]} 46. Rf6+ ({White should try} 46. a5 $1 $16) 46... Rf7 $14 47. Rxf7+ Kxf7 {[#] KR-KR} 48. Rc2 (48. a5 $1 $16 {[%cal Ra5a6]}) 48... f4 $11 49. gxf4 Rxh4+ (49... Rg2+ $11 50. Kh1 e4) 50. Kg3 $16 Rxf4 51. c5 (51. a5 $16) 51... Ke7 {The position is equal.} 52. c6 {c7 is the strong threat.} Kd8 53. c7+ Kc8 54. a5 h4+ 55. Kh3 Ra4 56. Rc3 e4 57. Rc5 Ra2 58. Re5 Kxc7 59. Rxe4 {[%emt 2:00:00]} Rxf2 {[%emt 1:41:11] White really could win this.  Weighted Error Value: White=0.30/Black=0.29 (precise)} 1/2-1/2

[Event "Skagerrak Kragero 2022"]
[Site "Kragero"]
[Date "2022.06.04"]
[Round "6.4"]
[White "Grave, Jacob Templen"]
[Black "Gaboyan, Susanna"]
[Result "0-1"]
[ECO "D72"]
[WhiteElo "2227"]
[BlackElo "2247"]
[Annotator "TA"]
[PlyCount "72"]
[EventDate "2022.06.02"]
[EventType "tourn"]
[EventCountry "NOR"]
[SourceTitle "playchess.com"]
[Source "ChessBase"]
[SourceQuality "1"]
[TimeControl "5400+30"]

{[%evp 13,72,0,48,27,83,35,37,34,37,0,4,0,0,2,50,0,0,0,0,0,0,-93,-97,-99,-60,-45,-40,-62,-72,-149,0,0,0,0,32,0,16,7,20,0,0,0,0,0,0,0,0,0,0,-352,-335,-601,-590,-585,-567,-567,-545,-545,-531,-531,-498]} 1. d4 Nf6 2. c4 g6 3. g3 Bg7 4. Bg2 d5 5. cxd5 Nxd5 6. e4 Nb6 7. Ne2 Nc6 (7... c5 $11) 8. d5 $14 {D72: Fianchetto Grünfeld: 5 cxd5 Nxd5 6 e4 Nb6 (without Nf3).} Ne5 (8... Na5 $11) 9. O-O (9. Nbc3 $16) 9... c6 10. Nbc3 {White is slightly better.} cxd5 11. exd5 (11. f4 $5 {[%cal Rf4e5]} Ng4 12. e5 $11) 11... O-O 12. b3 {[#]} Bg4 $146 ({Predecessor:} 12... Bf5 13. Be3 Qd7 14. Bd4 Bh3 15. Bxh3 Qxh3 16. Nf4 Qf5 17. Kg2 Rac8 18. Qb1 Qxb1 19. Raxb1 {0-1 (29) Barlay,I-Fecht,H Bern 1977}) 13. h3 Bf5 (13... Nf3+ $11 {deserves consideration.} 14. Kh1 Nd4 $1 15. hxg4 Nxe2 16. Qxe2 Bxc3) 14. Nd4 (14. Be3 $14) 14... Bd3 $11 15. Re1 {[%cal Oe1e5] aiming for Rxe5!} Ba6 16. Re3 {Inhibits Nd3.} Rc8 {[%cal Oc8c3]} 17. f4 {[#]} (17. Nde2 $11 {remains equal.}) 17... Nc6 $1 $17 18. Nc2 {[#]} Nb4 $1 19. Nxb4 Bxc3 20. Rxc3 Rxc3 21. Bb2 ({White should play} 21. Kh2) 21... Rc8 ({Black should try} 21... Rxg3 $17 {And now ...Bb5 would win.} 22. Kh2 {[#]} Rxg2+ $1 23. Kxg2 Bb5) 22. Qd4 $11 {[%csl Gb2][%cal Rd4h8]} f6 23. Re1 {[%cal Ba1e1,Be1e6,Be6e7][%mdl 32]} Qd7 24. h4 {[%mdl 1024] White has compensation.} Rfd8 25. Kh2 Qd6 26. Bh3 {Threatens to win with Re6. This bishop pair is nice.} Rc7 27. Re6 Qc5 28. Qxc5 Rxc5 29. Rxe7 {Strongly threatening Bd4.} Nxd5 30. Be6+ Kf8 31. Nxd5 {[%mdl 8192]} (31. Rxh7 $11 Nxb4 32. Bxf6 Rd2+ 33. Kh3 Bf1+ 34. Kg4 Be2+ 35. Kh3 Bf1+ 36. Kg4 Be2+ 37. Kh3 Bf1+) 31... Rdxd5 $19 (31... Rc2+ 32. Kg1 Rxd5 33. Rf7+ Ke8 34. Bxd5 $16) 32. Bxf6 $2 (32. Rf7+ Ke8 33. Bxd5 Rxd5 34. Rxh7 Rd2+ 35. Kg1 Rxb2 36. Rg7) 32... Rc2+ {Black is clearly winning.} 33. Kh3 Bf1+ ({Not} 33... Rd6 34. Rf7+ Ke8 35. Re7+ Kf8 36. Rf7+ Ke8 37. Re7+ Kf8 $11) 34. Kg4 h5+ 35. Kf3 Rd3+ 36. Ke4 {[%emt 1:45:56]} Re2+ {[%emt 1:22:49] Weighted Error Value: White=0.58/Black=0.15 (very precise)} 0-1

[Event "Skagerrak Kragero 2022"]
[Site "Kragero"]
[Date "2022.06.04"]
[Round "6.5"]
[White "Machlik, Monika"]
[Black "Tarleva, Diana"]
[Result "1/2-1/2"]
[ECO "D75"]
[WhiteElo "2134"]
[BlackElo "2160"]
[Annotator "TA"]
[PlyCount "28"]
[EventDate "2022.06.02"]
[EventType "tourn"]
[EventCountry "NOR"]
[SourceTitle "playchess.com"]
[Source "ChessBase"]
[SourceQuality "1"]
[TimeControl "5400+30"]

{[%evp 19,28,21,19,17,8,16,47,0,18,0,31]} 1. d4 Nf6 2. c4 g6 3. Nc3 Bg7 4. Nf3 O-O 5. g3 d5 6. cxd5 Nxd5 7. Bg2 c5 8. O-O cxd4 9. Nxd4 Nxc3 10. bxc3 Nd7 11. Ba3 {D75: Fianchetto Grünfeld: Main Line with 7...c5.} Re8 12. Qb3 Nb6 {[#]} 13. Bc5 $146 (13. Rac1 $14) ({Predecessor:} 13. Rac1 Qc7 14. e3 Qc4 15. Rfe1 Rb8 16. Bf1 Qxb3 17. axb3 a6 18. c4 Nd7 19. Bg2 e5 {½-½ (19) Jensen,B (2316)-Lupo,A (2317) ICCF email 2020}) 13... Nd7 14. Ba3 {[%emt 1:00:13]} Nb6 {[%emt 1:00:34] Not much happened in this game.  Weighted Error Value: White=0.16 (very precise) /Black=0.10 (very precise)} 1/2-1/2

[Event "Skagerrak Kragero 2022"]
[Site "Kragero"]
[Date "2022.06.05"]
[Round "7.1"]
[White "Tarleva, Diana"]
[Black "Rakhmangulova, Anastasiya"]
[Result "1-0"]
[ECO "C18"]
[WhiteElo "2160"]
[BlackElo "2245"]
[Annotator "TA"]
[PlyCount "77"]
[EventDate "2022.06.02"]
[EventType "tourn"]
[EventCountry "NOR"]
[SourceTitle "playchess.com"]
[Source "ChessBase"]
[SourceQuality "1"]
[TimeControl "5400+30"]

{[%evp 17,77,0,0,0,0,0,0,0,0,0,0,-20,19,19,14,15,46,56,49,49,142,154,159,162,160,144,125,162,356,356,385,383,612,538,736,721,790,796,848,827,1081,1085,1065,1065,966,803,2933,2387,1447,888,1912,2069,1905,1662,29990,29991,29994,29995,29995,29996,29996,29986]} 1. e4 e6 2. d4 d5 3. Nc3 Bb4 4. e5 Ne7 5. a3 Bxc3+ 6. bxc3 c5 7. Qg4 Kf8 8. Nf3 Qa5 9. Bd2 Qa4 10. Bd3 {C18: French: 3 Nc3 Bb4: Main line: 7 h4 and 7 Qg4.} c4 11. Be2 {[%cal Bd3e2,Be2d1,Bd1c2][%mdl 32]} Qxc2 12. O-O {The position is equal.} Nbc6 13. Rfc1 Qf5 14. Qg3 {[#]} h5 $146 ({Predecessor:} 14... Qg6 15. Qh3 Na5 16. Nh4 Qe4 17. Bf1 Nb3 18. f3 Qxh4 19. Qxh4 Nxd2 20. Rd1 Nb3 {1-0 (37) Mekhitarian,K (2554)-Osmak,I (2438) Chess.com INT 2020}) 15. Nh4 Qe4 16. Bd1 Nf5 17. Nxf5 Qxf5 18. h4 Na5 (18... Qg6 $14) 19. Bc2 $16 {[%mdl 1024] White has strong compensation.} Qg4 20. Qh2 $36 {[%mdl 2048] White is on the roll. White is more active.} Qe2 {[#]} (20... Nb3 $2 21. f3 Qf5 22. Bxf5 $18) 21. Bg5 {Hoping for Ra2.} Nb3 {[#]} 22. Qf4 $1 {[%cal Oc2g6] Intending Bg6! and mate.} Nxc1 $2 (22... Nxa1 {leads to mate.} 23. Bg6) (22... Bd7 23. Ra2 (23. Bg6 Be8 $17) 23... Qg4) 23. Qxc1 $18 b5 24. Ra2 Qg4 (24... a5 $142 25. Bb1 Qxa2 26. Bxa2 Bd7) 25. Qe1 a5 26. f3 {[%mdl 64] Trapped Piece} Qxg5 27. hxg5 g6 28. a4 Bd7 29. axb5 Bxb5 30. Qb1 Bd7 31. Qb7 Rd8 32. Rxa5 {[%cal Ba2a5,Ba5c5,Bc5c7,Bc7e7,Be7f7][%mdl 32] White threatens Ra7 and mate.} Kg7 33. Rc5 {Threatens to win with Rc7.} h4 34. Rc7 Be8 35. Re7 {And now Qc7 would win.} Rh5 {[#]} 36. Ba4 $1 {White mates.} Bxa4 (36... Rh7 37. Bxe8) 37. Rxf7+ Kg8 38. Qe7 {[%csl LRd8,LRe6]} h3 {[%emt 1:43:59]} 39. Qxd8+ {[%emt 1:38:18] Weighted Error Value: White=0.11 (very precise) /Black=0.48} 1-0

[Event "Skagerrak Kragero 2022"]
[Site "Kragero"]
[Date "2022.06.05"]
[Round "7.2"]
[White "Gaboyan, Susanna"]
[Black "Machlik, Monika"]
[Result "1-0"]
[ECO "A07"]
[WhiteElo "2247"]
[BlackElo "2134"]
[Annotator "TA"]
[PlyCount "73"]
[EventDate "2022.06.02"]
[EventType "tourn"]
[EventCountry "NOR"]
[SourceTitle "playchess.com"]
[Source "ChessBase"]
[SourceQuality "1"]
[TimeControl "5400+30"]

{[%evp 19,72,-7,0,-33,-31,-64,-65,-95,-88,-99,-93,-102,-93,-168,-170,-156,-164,-173,-64,-97,-72,-70,-65,-45,-43,-54,0,-27,-10,-205,-146,-141,-104,-103,0,-30,232,0,0,0,0,-265,-202,-347,-266,-402,-306,-912,-612,-925,-185,-189,29998,29999,29999]} 1. Nf3 d5 2. g3 c6 3. Bg2 Nf6 4. O-O Bf5 5. d3 h6 6. Nbd2 e6 7. Qe1 Be7 8. e4 Bh7 9. Qe2 O-O 10. Re1 a5 {[%cal Ba7a5,Ba5a4][%mdl 32]} 11. e5 {A07: Réti Opening: New York and Capablanca Systems.} Nfd7 12. Nf1 a4 13. a3 {Black is slightly better.} c5 14. g4 {[#]} Nc6 $146 ({Predecessor:} 14... Ra6 15. Ng3 Rc6 16. c4 Nb6 17. Rd1 Rc7 18. Nh5 Rd7 19. Be3 Nc6 20. Rac1 dxc4 21. dxc4 Rxd1+ 22. Rxd1 {0-1 (31) Bandza,A (2350)-Sapis,W (2420) Katowice 1993}) 15. Ng3 Rc8 16. Nh5 (16. Bd2 $17) 16... Nd4 $19 17. Nxd4 cxd4 18. Bf4 Bg5 (18... Qb6 $19 19. Reb1 Rc6) 19. Bg3 Qc7 20. f4 Be7 21. Rac1 {[%cal Of4f5]} Qb6 (21... g6 22. Nf6+ Nxf6 23. exf6 $14) 22. f5 $1 {[%cal Of5f6]} Qxb2 (22... Bg5 $15 23. Rb1 exf5) 23. f6 gxf6 24. Bh4 $2 (24. Qd2 $11 {and White is okay.} Rfe8 25. Qxh6 (25. Rb1 Qxc2 26. Qxh6 Bf8 $17)) 24... Rfe8 (24... Qxa3 25. Qd2 Kh8 26. Qxh6 $17) 25. exf6 Bf8 26. g5 {[%cal Og5g6]} Rc3 (26... Bxa3 $6 27. Ng7 $15) (26... b5 $17 27. Nf4 Bxa3) 27. Nf4 {[%cal Og5g6]} (27. g6 $5 Bxg6 28. Nf4 $11) 27... Bxa3 $2 {[%mdl 8192]} (27... Bd6 $1 $11 28. Nxd5 Bxd3) 28. gxh6 $2 (28. g6 $1 $18 {[%cal Rg6f7] White threatens gxf7+ and mate.} Bxg6 29. Nxg6 fxg6 30. Bxd5 (30. f7+ Kxf7 31. Bxd5 Qxc1 $15)) 28... Kh8 $1 $36 {[%mdl 2048] Hoping for ...Rg8. White is under pressure.} 29. Qh5 $1 ({Avoid the trap} 29. Qg4 $2 Rg8 30. Qe2 Qxc1 31. Rxc1 Bxc1 32. Nxd5 exd5 $19) 29... Rf8 (29... Rg8 $2 30. Qxf7 Nf8 31. Nxd5 $1 {[%mdl 512]} Rxc2 32. Rxc2 Qxc2 33. Bg3 $1 $18 (33. Nf4 $2 Bd6 $19)) 30. Rb1 {[%mdl 8192]} (30. Nxe6 $1 $11 {and White has nothing to worry.} fxe6 31. f7) 30... Qxc2 $19 {...Bd6 is the strong threat.} 31. Rxb7 {[#]} (31. Nxe6 $142 fxe6 32. Rxb7) 31... Rc7 $1 32. Rb5 (32. Rbb1 {might work better.} Bd6 33. Bg3 Bxd3 34. Nxd3 Bxg3 35. Red1) 32... Bc1 33. Nxe6 (33. Qg4 Rg8 34. Qg7+ Rxg7 35. hxg7+ Kg8 36. Nxd5) 33... fxe6 34. f7 {[%cal Oh5e5]} Be3+ $2 (34... Bxd3 35. Qg4 Bxh6 36. Qxe6 {[#]} Rc6 $1 37. Qxd5 Bxb5 38. Qxb5 Rg6) 35. Rxe3 {[%cal Oh5e5] Intending Qe5+! and mate.} dxe3 $4 {[%mdl 8192] [#]} (35... Bxd3 $19 36. Qg4 Rxf7 37. Qxd4+ Kh7) 36. Qe5+ $3 {[%mdl 576] Deflection} Nxe5 {[%emt 1:45:41]} 37. Bf6# {[%emt 1:41:22] Both players deserved the win here.  Weighted Error Value: White=0.68/Black=0.67} 1-0

[Event "Skagerrak Kragero 2022"]
[Site "Kragero"]
[Date "2022.06.05"]
[Round "7.3"]
[White "Hryzlova, Sofiia"]
[Black "Grave, Jacob Templen"]
[Result "1/2-1/2"]
[ECO "A14"]
[WhiteElo "2157"]
[BlackElo "2227"]
[Annotator "TA"]
[PlyCount "84"]
[EventDate "2022.06.02"]
[EventType "tourn"]
[EventCountry "NOR"]
[SourceTitle "playchess.com"]
[Source "ChessBase"]
[SourceQuality "1"]
[TimeControl "5400+30"]

{[%evp 20,84,18,16,0,5,6,0,0,-8,33,16,26,0,0,0,44,41,58,4,14,13,26,11,12,12,26,11,32,34,72,0,0,-22,-14,-54,-50,-41,0,0,0,0,0,0,15,0,0,0,2,0,0,0,0,-8,0,-8,-8,-4,-4,-22,-7,-12,0,0,0,0,0]} 1. Nf3 Nf6 2. c4 e6 3. g3 b6 4. Bg2 Bb7 5. O-O Be7 6. b3 O-O 7. Bb2 c5 8. e3 d5 9. Qe2 Nc6 10. Rd1 dxc4 11. bxc4 Qc7 {A14: English Opening: 1...e6 with b3 by White.} 12. d3 Rfd8 13. Nbd2 Rd7 {[#]} 14. Ne1 $146 ({Predecessor:} 14. d4 Rad8 15. Rac1 h6 16. Nb3 {½-½ (16) Kruse,H (2383)-Antonov,V (2367) FICGS email 2014}) 14... a6 15. f4 b5 16. g4 Ne8 17. Rac1 Na5 18. Nef3 f6 19. d4 (19. g5 $14) 19... Nxc4 20. Nxc4 bxc4 21. Qxc4 Bd5 22. Qe2 Qb6 23. Ba3 cxd4 24. Bxe7 {[#] Strongly threatening Bc5.} Rxe7 25. Rxd4 ({White should try} 25. Nxd4 $16 Bxg2 26. Qxg2) 25... Nd6 {[%cal Be8d6,Bd6b5,Bb5c7,Bc7d5][%mdl 32] Inhibits f5.} 26. Kh1 Qb7 27. Nd2 Nb5 $1 28. Rb4 {[#] aiming for e4.} Bxg2+ 29. Qxg2 {The position is equal.} Rc8 30. Rbc4 Rxc4 31. Rxc4 Qa7 32. a4 (32. g5 {is more complex.} Kf7 33. gxf6 gxf6 34. Rc1) 32... Nc7 33. Rd4 Nd5 34. Qf3 Qc5 35. f5 Nc7 36. Ne4 Qe5 37. Rd8+ Re8 38. Rxe8+ Nxe8 39. fxe6 Qxe6 40. Nc5 Qd6 41. Qe4 Nc7 42. Qc4+ {[%emt 1:49:40]} Kf8 {[%emt 1:50:13] Weighted Error Value: White=0.13 (very precise) /Black=0.07 (flawless)} 1/2-1/2

[Event "Skagerrak Kragero 2022"]
[Site "Kragero"]
[Date "2022.06.05"]
[Round "7.4"]
[White "Skaslien, Ingrid"]
[Black "Sagafos, Magne"]
[Result "0-1"]
[ECO "E63"]
[WhiteElo "1884"]
[BlackElo "2361"]
[Annotator "TA"]
[PlyCount "74"]
[EventDate "2022.06.02"]
[EventType "tourn"]
[EventCountry "NOR"]
[SourceTitle "playchess.com"]
[Source "ChessBase"]
[SourceQuality "1"]
[TimeControl "5400+30"]

{[%evp 20,74,24,-18,-16,-27,-25,-20,15,-40,-12,-86,-75,-77,-62,-145,-146,-142,-152,-146,-155,-232,-229,-333,-329,-335,-319,-368,-333,-356,-349,-477,-460,-447,-420,-514,-514,-507,-379,-667,-664,-438,-403,-436,-419,-386,-386,-617,-516,-807,-800,-1034,-1034,-29971,-29973,-29984,-29985]} 1. d4 Nf6 2. c4 g6 3. Nc3 Bg7 4. Nf3 d6 5. g3 O-O 6. Bg2 Nc6 7. O-O a6 {[%cal Ba7a6,Ba6b5,Bb5b4][%mdl 32]} 8. h3 Rb8 9. e4 b5 10. cxb5 {The old main line.} axb5 11. d5 b4 {E63: King's Indian: Fianchetto: Panno Variation with 7...a6.} 12. Ne2 Na5 13. Nfd4 Bd7 {[#] The position is equal.} 14. Qc2 $146 ({White should try} 14. Re1 $11) ({Predecessor:} 14. b3 c5 15. dxc6 Nxc6 16. Be3 Qa5 17. Qd2 Rfd8 18. Rfc1 Nxd4 19. Bxd4 e5 20. Bb2 {0-1 (40) Testa,A (2269)-Goes,S (2104) Amsterdam 2011}) 14... Qc8 (14... e5 $5 {[%cal Re5d4]} 15. dxe6 fxe6 $11) 15. Kh2 (15. Bd2 $11) 15... c5 16. dxc6 Nxc6 17. Bd2 {Black converts the advantage convincingly.} ({White should play} 17. Nxc6 $15 Qxc6 18. Qb1) 17... Nxd4 $17 18. Nxd4 {[#]} Ng4+ $1 {[%mdl 512]} 19. hxg4 {And now Qd3 would win.} Bxd4 20. Qxc8 (20. Rac1 $17) 20... Rfxc8 $19 ({Weaker is} 20... Rbxc8 21. Bxb4 Bxb2 22. Rad1) 21. Rfc1 (21. Rac1 {was called for.}) 21... Bxb2 22. Rxc8+ Rxc8 (22... Bxc8 $2 {perishes.} 23. Rb1 Ba3 24. Bh3 $19) 23. Rb1 Bc3 ({Avoid the trap} 23... Rc2 $2 24. Bxb4 Rxf2 25. Rd1 $19) 24. Bxc3 bxc3 {[%mdl 4096] Endgame KRB-KRB} 25. g5 {[#]} Bb5 $1 {[%mdl 512]} 26. Rc1 c2 27. Bh3 Rc5 28. Kg2 e6 29. Kf3 $2 (29. f4) 29... Rc3+ 30. Kg2 Be2 31. f4 Bf3+ 32. Kf2 Bxe4 {Strongly threatening ...h5.} 33. Bf1 (33. Bg2 $142 Bf5 34. Bf1) 33... d5 {[%cal Bd6d5,Bd5d4,Bd4d3][%mdl 32]} 34. a4 (34. Bg2 $142 Bd3 35. Bf1) 34... d4 {White must now prevent ...Rf3+.} 35. a5 Rf3+ 36. Ke2 d3+ 37. Ke1 {[%emt 1:47:57] [#]} Rxf1+ $1 {[%emt 1:35:02] Weighted Error Value: White=0.94/Black=0.13 (very precise)} 0-1

[Event "Skagerrak Kragero 2022"]
[Site "Kragero"]
[Date "2022.06.05"]
[Round "7.5"]
[White "Verbin, Valentina"]
[Black "Doluhanova, Evgeniya"]
[Result "0-1"]
[ECO "E18"]
[WhiteElo "2067"]
[BlackElo "2270"]
[Annotator "TA"]
[PlyCount "74"]
[EventDate "2022.06.02"]
[EventType "tourn"]
[EventCountry "NOR"]
[SourceTitle "playchess.com"]
[Source "ChessBase"]
[SourceQuality "1"]
[TimeControl "5400+30"]

{[%evp 18,74,18,8,6,7,17,0,-16,-22,-2,-26,0,0,0,14,86,45,29,-12,-8,-23,25,-30,-37,-29,14,-108,-123,-110,-109,-226,-220,-227,-106,-207,-216,-220,-213,-303,-295,-259,-227,-311,-232,-1122,-1101,-29961,-1034,-955,-877,-1235,-1253,-1056,-1044,-1259,-1243,-1195,-908]} 1. d4 Nf6 2. c4 e6 3. Nf3 b6 4. g3 Bb7 5. Bg2 Be7 6. O-O O-O 7. Nc3 Ne4 8. Bd2 d6 9. d5 Nxd2 {9...Nxd2 scores better than 9...Nxc3.} 10. Nxd2 e5 {E18: Queen's Indian: Old Main Line (4 g3 Bb7 5 Bg2 Be7 6 0-0 0-0 7 Nc3).} 11. e4 Nd7 12. f4 exf4 {The position is equal.} 13. gxf4 Bf6 14. Qf3 {[#]} a5 $146 ({Predecessor:} 14... Re8 15. Rae1 a6 16. a4 Qe7 17. Kh1 Nf8 18. Bh3 Ng6 19. Re3 Bc8 20. Bxc8 Raxc8 {½-½ (51) Velikov,P (2470)-Hecht,H (2460) Luzern 1982}) 15. Rae1 Bd4+ 16. Kh1 f5 (16... g6 $11 {keeps the balance.}) 17. Qd3 Bf6 18. exf5 Nc5 19. Qc2 Bc8 {[#]} (19... Bxc3 {is more appropriate.} 20. Qxc3 Bc8) 20. Re6 $1 Bxc3 $11 21. bxc3 Bxe6 22. fxe6 (22. dxe6 $11 {was the only way to keep the balance.} Rb8 23. Nf3) 22... Qh4 $17 {Black converts the advantage convincingly.} 23. f5 Rf6 $1 24. Ne4 (24. Nf3 $17 Qxc4 25. Nd4) 24... Rh6 $19 {[%csl Gh6][%cal Rh4h2]} 25. Bf3 Rf8 {The board is on fire.} (25... Qf4 $1 $19 {and Black stays clearly on top. ...Nxe4 is the strong threat.} 26. Nxc5 bxc5) 26. Nxc5 (26. Qe2 $17) 26... bxc5 $40 {[%mdl 128] Black is out for blood.} ({And not} 26... dxc5 27. Qe2 $11) 27. Be4 {[#]} Qf6 $1 28. Rf2 (28. Qe2 {might work better.}) 28... Rh3 29. Bd3 Rb8 {[%cal Oa5a4]} 30. Re2 Qg5 31. Re1 $2 (31. Qd2 Qg3 32. Bc2) 31... Qg3 32. Rd1 {[#]} Rxh2+ $3 {[%mdl 512]} 33. Qxh2 {Black is clearly winning.} Qf3+ 34. Kg1 Qxd1+ 35. Bf1 Qg4+ 36. Kh1 Qxf5 37. Qe2 {[%emt 1:41:46]} Qe5 {[%emt 1:40:17] Weighted Error Value: White=1.12/Black=0.43} 0-1